fUST/lending_fUST_20250705
["ID","MTS","AMOUNT","RATE_DAILY","PERIOD"]
[369644644,1751667049570,-936.44,0.00022465,2]
[369644645,1751667049580,-478.41,0.00022465,2]
[369644646,1751667049590,-471.8,0.00022465,2]
[369644647,1751667049599,-569.05,0.00022465,2]
[369644648,1751667049610,-503.02,0.00022465,2]
[369644649,1751667049619,-1261.3,0.00022465,2]
[369644650,1751667049629,-667.1,0.00022465,2]
[369644651,1751667049639,-316.10887213,0.00022466,3]
[369644652,1751667049651,-500.0,0.00022489,10]
[369644653,1751667049662,-500.0,0.00022489,10]
[369644654,1751667049671,-500.0,0.00022489,10]
[369644655,1751667049681,-500.0,0.00022489,10]
[369644656,1751667049691,-500.0,0.00022489,10]
[369644657,1751667049701,-500.0,0.00022489,10]
[369644658,1751667049711,-500.0,0.00022489,10]
[369644659,1751667049721,-500.0,0.00022489,10]
[369644660,1751667049732,-4385.40949035,0.0002249,2]
[369644661,1751667049742,-16744.90608014,0.0002249,2]
[369644662,1751667049751,-155538.88097469,0.0002249,7]
[369644663,1751667049769,-763.062,0.0002249,7]
[369644664,1751667049781,-312.63784827,0.0002249,7]
[369644665,1751667049937,-218.40380928,0.00019078,2]
[369644666,1751667049946,-218.40380927,0.00019283,2]
[369644667,1751667049955,-2472.76640635,0.0002249,7]
[369644668,1751667049989,-151.0,0.00021918,2]
[369644669,1751667049998,-12655.71799296,0.0002249,7]
[369644670,1751667050010,-1639.4885914,0.0002249,7]
[369644671,1751667050021,-7293.99937082,0.0002249,7]
[369644673,1751667629920,223.466562,0.00013699,2]
[369644722,1751668069163,3421.08,0.00024658,60]
[369644724,1751668119404,301.58278521,0.00023,60]
[369644780,1751668231762,-460.0,0.00016438,2]
[369644781,1751668231772,-460.0,0.00016438,2]
[369644782,1751668231782,-460.0,0.00016438,2]
[369644783,1751668231791,-224.37921612,0.00016712,2]
[369644804,1751668237737,-235.62078388,0.00016712,2]
[369644805,1751668237747,-460.0,0.00016712,2]
[369644806,1751668237757,-460.0,0.00016712,2]
[369644807,1751668237768,-442.86,0.00016986,2]
[369644808,1751668237778,-402.16,0.00016986,2]
[369644809,1751668237787,-160.0,0.00017563,2]
[369644810,1751668237797,-215.11345689,0.00017563,2]
[369644811,1751668237806,-230.40116161,0.00017563,2]
[369644812,1751668237816,-837.48520791,0.00017563,2]
[369644813,1751668237826,-847.91215827,0.00017563,2]
[369644814,1751668237835,-213.97741257,0.00017563,2]
[369644815,1751668237845,-1603.06446032,0.00017563,2]
[369644816,1751668237856,-1841.0052409,0.0001804,2]
[369644817,1751668237867,-211.9,0.000183,2]
[369644818,1751668237876,-819.55927303,0.000189,2]
[369644819,1751668237886,-1180.79110559,0.00019,2]
[369644820,1751668237895,-158.43623797,0.00019,20]
[369644821,1751668237905,-207.4,0.00019054,2]
[369644822,1751668237915,-819.55927275,0.00019107,2]
[369644823,1751668237925,-361.679493,0.00019178,2]
[369644824,1751668237934,-666.0,0.00019178,2]
[369644825,1751668237944,-819.55927275,0.00019314,2]
[369644826,1751668237954,-819.55927275,0.00019521,2]
[369644827,1751668237964,-460.0,0.00019524,2]
[369644828,1751668237973,-460.0,0.00019524,2]
[369644829,1751668237983,-460.0,0.00019524,2]
[369644830,1751668237994,-460.0,0.00019524,2]
[369644831,1751668238004,-460.0,0.00019524,2]
[369644832,1751668238014,-460.0,0.00019589,2]
[369644833,1751668238025,-819.55927275,0.00019728,2]
[369644834,1751668238036,-460.0,0.00019798,2]
[369644835,1751668238047,-460.0,0.00019798,2]
[369644836,1751668238058,-460.0,0.00019798,2]
[369644837,1751668238068,-460.0,0.00019798,2]
[369644838,1751668238077,-460.0,0.00019798,2]
[369644839,1751668238087,-460.0,0.00019863,2]
[369644840,1751668238097,-262.26714283,0.000199,2]
[369644841,1751668238109,-819.55927275,0.00019934,2]
[369644842,1751668238119,-177.588,0.00019987,2]
[369644843,1751668238130,-150.0,0.0002,30]
[369644844,1751668238140,-2993.63228903,0.0002,2]
[369644845,1751668238151,-300.0,0.0002,2]
[369644846,1751668238161,-661.69169688,0.0002,2]
[369644847,1751668238172,-10799.0879766,0.0002,2]
[369644848,1751668238182,-6885.83877148,0.0002,2]
[369644849,1751668238192,-20000.70178821,0.0002,2]
[369644850,1751668238201,-515.32,0.00020072,2]
[369644851,1751668238211,-589.21,0.00020072,2]
[369644852,1751668238221,-495.43,0.00020072,2]
[369644853,1751668238231,-460.0,0.00020072,2]
[369644854,1751668238242,-460.0,0.00020072,2]
[369644855,1751668238253,-460.0,0.00020137,2]
[369644856,1751668238263,-819.55927275,0.00020141,2]
[369644857,1751668238273,-223.466562,0.00020187,2]
[369644858,1751668238283,-327.37,0.00020346,2]
[369644859,1751668238293,-460.0,0.00020346,2]
[369644860,1751668238303,-819.55927275,0.00020348,3]
[369644861,1751668238313,-460.0,0.00020411,2]
[369644862,1751668238322,-215.0738,0.00020423,2]
[369644863,1751668238331,-9270.42732441,0.000205,2]
[369644864,1751668238342,-262.26714279,0.00020525,2]
[369644865,1751668238352,-819.55927275,0.00020555,3]
[369644866,1751668238368,-161.49,0.0002062,2]
[369644867,1751668238378,-460.0,0.00020685,2]
[369644868,1751668238388,-1875.35,0.0002071,20]
[369644869,1751668238398,-819.55927275,0.00020762,3]
[369644870,1751668238410,-1726.060106,0.0002078,5]
[369644871,1751668238420,-1000.0,0.000208,5]
[369644872,1751668238432,-1000.0,0.0002082,5]
[369644873,1751668238452,-1000.0,0.0002084,5]
[369644874,1751668238465,-1000.0,0.0002086,5]
[369644875,1751668238475,-1000.0,0.0002088,5]
[369644876,1751668238487,-1000.0,0.000209,5]
[369644877,1751668238498,-1000.0,0.0002092,5]
[369644878,1751668238509,-1000.0,0.0002094,5]
[369644879,1751668238519,-460.0,0.00020959,2]
[369644880,1751668238529,-1000.0,0.0002096,5]
[369644881,1751668238540,-819.55927275,0.00020969,4]
[369644882,1751668238550,-999.99999901,0.0002098,2]
[369644883,1751668238560,-1000.0,0.0002098,5]
[369644884,1751668238569,-13100.19,0.0002099,10]
[369644885,1751668238579,-2000.0,0.00021,2]
[369644886,1751668238588,-1000.0,0.00021,5]
[369644887,1751668238598,-29644.4350251,0.00021,2]
[369644888,1751668238609,-151.0,0.0002114,2]
[369644889,1751668238619,-212.985967,0.0002114,2]
[369644890,1751668238629,-212.985967,0.0002114,2]
[369644891,1751668238639,-153.729187,0.0002114,2]
[369644892,1751668238649,-262.26714279,0.0002115,2]
[369644893,1751668238659,-151.0,0.0002116,2]
[369644894,1751668238668,-151.0,0.0002116,2]
[369644895,1751668238678,-151.0,0.0002116,2]
[369644896,1751668238688,-151.0,0.0002116,2]
[369644897,1751668238698,-151.0,0.0002116,2]
[369644898,1751668238708,-171.940705,0.0002116,2]
[369644899,1751668238717,-171.940705,0.0002116,2]
[369644900,1751668238726,-819.55927275,0.00021176,4]
[369644901,1751668238736,-460.0,0.00021233,2]
[369644902,1751668238747,-819.55927275,0.00021383,5]
[369644903,1751668238757,-168.0,0.00021409,2]
[369644904,1751668238766,-563.90037931,0.00021507,2]
[369644905,1751668238776,-168.0,0.00021527,2]
[369644906,1751668238787,-819.55927275,0.0002159,5]
[369644907,1751668238796,-5000.0,0.00021644,2]
[369644908,1751668238806,-5000.0,0.00021644,2]
[369644909,1751668238816,-5000.0,0.00021644,2]
[369644910,1751668238826,-5000.0,0.00021644,2]
[369644911,1751668238835,-151.0,0.00021644,2]
[369644912,1751668238847,-283.597664,0.00021644,2]
[369644913,1751668238858,-151.0,0.00021644,2]
[369644914,1751668238868,-151.0,0.00021644,2]
[369644915,1751668238878,-151.0,0.00021644,2]
[369644916,1751668238888,-171.940705,0.00021644,2]
[369644917,1751668238897,-171.940705,0.00021644,2]
[369644918,1751668238907,-212.985967,0.00021644,2]
[369644919,1751668238917,-212.985967,0.00021644,2]
[369644920,1751668238927,-500.0,0.00021752,2]
[369644921,1751668238937,-500.0,0.00021752,2]
[369644922,1751668238947,-262.26714279,0.00021775,2]
[369644923,1751668238957,-223.0315306,0.00021792,2]
[369644924,1751668238967,-819.55927275,0.00021797,6]
[369644925,1751668238977,-151.0,0.000219,2]
[369644926,1751668238993,-171.940705,0.000219,2]
[369644927,1751668239005,-171.940705,0.000219,2]
[369644928,1751668239015,-212.985967,0.000219,2]
[369644929,1751668239025,-212.985967,0.000219,2]
[369644930,1751668239035,-151.0,0.00021917,2]
[369644931,1751668239045,-151.0,0.00021917,2]
[369644932,1751668239055,-151.0,0.00021917,2]
[369644933,1751668239064,-500.0,0.00021917,2]
[369644934,1751668239073,-500.0,0.00021917,2]
[369644935,1751668239086,-500.0,0.00021917,2]
[369644936,1751668239096,-500.0,0.00021917,2]
[369644937,1751668239105,-500.0,0.00021917,2]
[369644938,1751668239115,-309.50937025,0.00021917,2]
[369644939,1751668239124,-400.0,0.00021918,7]
[369644940,1751668239134,-150.0,0.00021918,2]
[369644941,1751668239144,-200.0,0.00021918,2]
[369644942,1751668239153,-150.0,0.00021918,2]
[369644943,1751668239163,-847.91215827,0.0002199,10]
[369644944,1751668239172,-293.73098351,0.00021999,2]
[369644945,1751668239182,-500.0,0.00021999,2]
[369644946,1751668239192,-198.27609332,0.00021999,2]
[369644947,1751668239201,-151.0,0.00022,7]
[369644948,1751668239211,-151.0,0.00022,7]
[369644949,1751668239221,-2000.0,0.00022,2]
[369644950,1751668239231,-151.0,0.00022,7]
[369644951,1751668239240,-151.0,0.00022,7]
[369644952,1751668239250,-151.0,0.00022,7]
[369644953,1751668239260,-279.04638,0.00022,7]
[369644954,1751668239269,-151.0,0.00022,7]
[369644955,1751668239279,-151.0,0.00022,7]
[369644956,1751668239289,-171.940705,0.00022,7]
[369644957,1751668239299,-171.940705,0.00022,7]
[369644958,1751668239309,-171.940705,0.00022,7]
[369644959,1751668239318,-171.940705,0.00022,7]
[369644960,1751668239328,-212.985967,0.00022,7]
[369644961,1751668239337,-212.985967,0.00022,7]
[369644963,1751668239347,-212.985967,0.00022,7]
[369644964,1751668239358,-212.985967,0.00022,7]
[369644966,1751668239370,-37880.90948174,0.00022,2]
[369644968,1751668239380,-11171.56930416,0.00022,2]
[369644969,1751668239390,-122812.31,0.00022,7]
[369644970,1751668239401,-819.55927275,0.00022003,6]
[369644971,1751668239412,-231.451058,0.0002204,4]
[369644972,1751668239421,-151.0,0.00022074,6]
[369644973,1751668239431,-819.55927275,0.0002221,6]
[369644974,1751668239442,-500.0,0.000223,2]
[369644976,1751668239452,-524.86301716,0.0002237,10]
[369644977,1751668239462,-103820.72028037,0.0002239,2]
[369644978,1751668239471,-10999.999999,0.0002239,2]
[369644979,1751668239481,-152.14,0.000224,31]
[369644980,1751668239490,-152.14,0.000224,31]
[369644981,1751668239500,-152.14,0.000224,31]
[369644982,1751668239510,-152.14,0.000224,31]
[369644983,1751668239519,-152.14,0.000224,31]
[369644984,1751668239528,-152.14,0.000224,31]
[369644985,1751668239539,-152.14,0.000224,31]
[369644986,1751668239551,-152.14,0.000224,31]
[369644987,1751668239560,-152.14,0.000224,31]
[369644988,1751668239570,-262.26714279,0.000224,2]
[369644989,1751668239579,-819.55927275,0.00022417,7]
[369644990,1751668239589,-316.10887213,0.00022466,3]
[369644991,1751668239599,-500.0,0.00022489,10]
[369644992,1751668239609,-500.0,0.00022489,10]
[369644993,1751668239618,-500.0,0.00022489,10]
[369644994,1751668239627,-200425.97734371,0.0002249,7]
[369645001,1751668240208,-1244.74662354,0.0002249,7]
[369645015,1751668361460,7499.0,0.00027397,120]
[369645018,1751668676740,201.119905,0.00013699,2]
[369645023,1751669371147,-190.71,0.000184,2]
[369645024,1751669371168,-460.0,0.00018865,2]
[369645026,1751669399481,4341.87991135,0.000189,2]
[369645059,1751669432157,-524.86301716,0.00019652,2]
[369645060,1751669432166,-1193.621698,0.00019653,2]
[369645061,1751669432176,-243.71936142,0.00019899,2]
[369645062,1751669432186,-460.0,0.00019899,2]
[369645063,1751669432195,-178.9338478,0.00019899,2]
[369645064,1751669432204,-847.91215827,0.00019935,2]
[369645065,1751669432214,-406.0,0.00019942,2]
[369645066,1751669432223,-207.4,0.00019981,2]
[369645067,1751669432234,-160.0,0.0001999,2]
[369645068,1751669432243,-213.97741257,0.0001999,2]
[369645069,1751669432252,-215.11345689,0.0001999,2]
[369645070,1751669432261,-837.48520791,0.0001999,2]
[369645071,1751669432271,-56.19525045,0.0001999,2]
[369645098,1751669437986,-174.20591116,0.0001999,2]
[369645099,1751669437996,-151.28821919,0.0002,2]
[369645100,1751669438005,-37.30586965,0.00020187,2]
[369645101,1751669438016,-163.81403535,0.00020187,2]
[369645102,1751669438026,-289.343594,0.00020657,2]
[369645103,1751669438035,-416.61637889,0.000209,4]
[369645104,1751669438044,-2000.0,0.00021,2]
[369645105,1751669438055,-150.0,0.00021,5]
[369645106,1751669438064,-416.61637861,0.00021038,4]
[369645107,1751669438075,-416.61637861,0.00021176,4]
[369645108,1751669438085,-416.61637861,0.00021314,5]
[369645109,1751669438095,-215.0738,0.0002135,2]
[369645110,1751669438105,-416.61637861,0.00021452,5]
[369645111,1751669438115,-416.61637861,0.0002159,5]
[369645112,1751669438124,-460.0,0.00021643,2]
[369645113,1751669438134,-5000.0,0.00021644,2]
[369645114,1751669438144,-5000.0,0.00021644,2]
[369645115,1751669438154,-416.61637861,0.00021728,5]
[369645116,1751669438163,-416.61637861,0.00021866,6]
[369645117,1751669438173,-174.84476186,0.000219,2]
[369645118,1751669438183,-403.74323705,0.00021918,7]
[369645119,1751669438193,-150.0,0.00021918,2]
[369645120,1751669438203,-11551.21,0.00022,7]
[369645121,1751669438212,-2000.0,0.00022,2]
[369645122,1751669438222,-524.86301716,0.00022,7]
[369645123,1751669438233,-847.91215827,0.00022,7]
[369645124,1751669438242,-416.61637861,0.00022003,6]
[369645125,1751669438251,-231.451058,0.0002204,4]
[369645126,1751669438261,-151.0,0.00022084,6]
[369645127,1751669438270,-300.0,0.00022087,2]
[369645128,1751669438279,-416.61637861,0.00022141,6]
[369645129,1751669438289,-416.61637861,0.00022279,6]
[369645130,1751669438298,-524.86301716,0.0002238,10]
[369645131,1751669438308,-10916.82,0.0002238,10]
[369645132,1751669438317,-9097.35,0.0002238,10]
[369645133,1751669438326,-500.0,0.00022389,2]
[369645134,1751669438335,-500.0,0.00022389,2]
[369645135,1751669438344,-500.0,0.00022389,2]
[369645136,1751669438354,-500.0,0.00022389,2]
[369645137,1751669438363,-500.0,0.00022389,2]
[369645138,1751669438372,-500.0,0.00022389,2]
[369645139,1751669438382,-500.0,0.00022389,2]
[369645140,1751669438391,-490.69926942,0.00022389,2]
[369645141,1751669438401,-500.0,0.00022389,2]
[369645142,1751669438410,-500.0,0.00022389,2]
[369645143,1751669438420,-103820.72028037,0.0002239,2]
[369645144,1751669438430,-152.14,0.000224,31]
[369645145,1751669438439,-152.14,0.000224,31]
[369645146,1751669438448,-152.14,0.000224,31]
[369645147,1751669438458,-152.14,0.000224,31]
[369645148,1751669438467,-152.14,0.000224,31]
[369645149,1751669438477,-152.14,0.000224,31]
[369645150,1751669438486,-152.14,0.000224,31]
[369645151,1751669438497,-152.14,0.000224,31]
[369645152,1751669438507,-152.14,0.000224,31]
[369645153,1751669438517,-416.61637861,0.00022417,7]
[369645154,1751669438527,-316.10887213,0.00022466,3]
[369645155,1751669438538,-37319.06319104,0.00022469,7]
[369645156,1751669438548,-524.86301716,0.00022469,7]
[369645157,1751669438557,-205.61168846,0.00022489,2]
[369645158,1751669438567,-488.79326533,0.00022489,2]
[369645159,1751669438577,-500.0,0.00022489,2]
[369645160,1751669438586,-525.49961015,0.00022489,2]
[369645161,1751669438596,-53262.54318052,0.0002249,7]
[369645162,1751669438606,-65086.37133783,0.0002249,7]
[369645206,1751669443273,-920.0,0.0002249,7]
[369645244,1751669445978,-820.29,0.0002249,7]
[369645245,1751669487480,171.64,0.000187,2]
[369645246,1751669808596,181.007914,0.00013699,2]
[369645248,1751670417205,-154.47,0.000187,2]
[369645249,1751670417228,-406.0,0.00019951,2]
[369645250,1751670417253,-181.007914,0.00020187,2]
[369645251,1751670417274,-2894.58660757,0.0002039,2]
[369645252,1751670417297,-6277.04222222,0.00020881,2]
[369645253,1751670584387,1000.31,0.00024376,60]
[369645272,1751670632300,-150.0,0.000187,2]
[369645274,1751670632312,-1929.72440505,0.000189,2]
[369645277,1751670632324,-651.21125083,0.00020881,2]
[369645452,1751670638235,-261.29766045,0.00020881,2]
[369645453,1751670638248,-248.8764746,0.00020929,2]
[369645454,1751670638260,-2000.0,0.00021,2]
[369645455,1751670638272,-150.0,0.00021,2]
[369645456,1751670638283,-655.54338262,0.00021,2]
[369645457,1751670638294,-231.474875,0.00021073,2]
[369645458,1751670638304,-300.0,0.00021078,2]
[369645460,1751670638314,-207.4,0.00021081,2]
[369645461,1751670638325,-1182.01,0.00021622,2]
[369645462,1751670638335,-460.0,0.00021643,2]
[369645463,1751670638346,-460.0,0.00021643,2]
[369645465,1751670638357,-460.0,0.00021643,2]
[369645466,1751670638368,-1182.01,0.00021722,2]
[369645467,1751670638379,-1182.01,0.00021822,2]
[369645468,1751670638389,-354.67427624,0.000219,6]
[369645469,1751670638399,-460.0,0.00021917,2]
[369645470,1751670638409,-460.0,0.00021917,2]
[369645471,1751670638419,-150.0,0.00021918,2]
[369645472,1751670638429,-1182.01,0.00021922,7]
[369645473,1751670638439,-354.67427596,0.00022003,6]
[369645474,1751670638449,-1182.01,0.00022022,4]
[369645475,1751670638460,-231.451058,0.0002204,4]
[369645476,1751670638474,-150.54157,0.0002204,7]
[369645477,1751670638488,-151.0,0.00022088,6]
[369645478,1751670638499,-354.67427596,0.00022107,6]
[369645479,1751670638509,-1182.01,0.00022122,2]
[369645480,1751670638519,-460.0,0.00022191,2]
[369645481,1751670638530,-354.67427596,0.0002221,6]
[369645482,1751670638540,-1182.01,0.00022222,2]
[369645483,1751670638552,-300.0,0.00022235,2]
[369645484,1751670638563,-636.39145876,0.00022299,2]
[369645485,1751670638574,-354.67427596,0.00022314,7]
[369645486,1751670638585,-460.0,0.00022321,2]
[369645487,1751670638597,-1182.01,0.00022322,2]
[369645488,1751670638608,-636.39145872,0.00022324,2]
[369645489,1751670638619,-636.39145872,0.0002235,2]
[369645490,1751670638630,-636.39145872,0.00022375,2]
[369645491,1751670638641,-10916.82,0.0002238,10]
[369645492,1751670638651,-9097.35,0.0002238,10]
[369645493,1751670638662,-500.0,0.00022389,2]
[369645494,1751670638673,-500.0,0.00022389,2]
[369645495,1751670638683,-500.0,0.00022389,2]
[369645496,1751670638695,-500.0,0.00022389,2]
[369645497,1751670638706,-500.0,0.00022389,2]
[369645498,1751670638717,-500.0,0.00022389,2]
[369645499,1751670638729,-490.69926942,0.00022389,2]
[369645500,1751670638741,-500.0,0.00022389,2]
[369645501,1751670638753,-500.0,0.00022389,2]
[369645502,1751670638763,-500.0,0.00022389,2]
[369645503,1751670638774,-500.0,0.00022389,2]
[369645504,1751670638785,-500.0,0.00022389,2]
[369645505,1751670638796,-500.0,0.00022389,2]
[369645506,1751670638806,-500.0,0.00022389,2]
[369645507,1751670638817,-500.0,0.00022389,2]
[369645508,1751670638827,-500.0,0.00022389,2]
[369645509,1751670638838,-500.0,0.00022389,2]
[369645510,1751670638849,-500.0,0.00022389,2]
[369645511,1751670638859,-500.0,0.00022389,2]
[369645512,1751670638870,-500.0,0.00022389,2]
[369645513,1751670638881,-500.0,0.00022389,2]
[369645514,1751670638891,-500.0,0.00022389,2]
[369645515,1751670638904,-500.0,0.00022389,2]
[369645516,1751670638915,-500.0,0.00022389,2]
[369645517,1751670638924,-500.0,0.00022389,2]
[369645518,1751670638935,-500.0,0.00022389,2]
[369645519,1751670638945,-500.0,0.00022389,2]
[369645520,1751670638955,-500.0,0.00022389,2]
[369645521,1751670638965,-550.00000053,0.00022389,2]
[369645522,1751670638976,-500.0,0.00022389,2]
[369645523,1751670638987,-500.0,0.00022389,2]
[369645524,1751670639194,-500.0,0.00022389,2]
[369645525,1751670639204,-500.0,0.00022389,2]
[369645526,1751670639213,-500.0,0.00022389,2]
[369645527,1751670639222,-500.0,0.00022389,2]
[369645528,1751670639232,-500.0,0.00022389,2]
[369645529,1751670639241,-500.0,0.00022389,2]
[369645530,1751670639250,-500.0,0.00022389,2]
[369645531,1751670639260,-500.0,0.00022389,2]
[369645532,1751670639270,-500.0,0.00022389,2]
[369645533,1751670639279,-500.0,0.00022389,2]
[369645534,1751670639289,-500.0,0.00022389,2]
[369645535,1751670639298,-500.0,0.00022389,2]
[369645536,1751670639308,-500.0,0.00022389,2]
[369645537,1751670639318,-500.0,0.00022389,2]
[369645538,1751670639328,-500.0,0.00022389,2]
[369645539,1751670639337,-500.0,0.00022389,2]
[369645540,1751670639347,-500.0,0.00022389,2]
[369645541,1751670639356,-500.0,0.00022389,2]
[369645542,1751670639366,-500.0,0.00022389,2]
[369645543,1751670639380,-500.0,0.00022389,2]
[369645544,1751670639389,-500.0,0.00022389,2]
[369645545,1751670639400,-500.0,0.00022389,2]
[369645546,1751670639410,-103820.72028037,0.0002239,2]
[369645547,1751670639420,-530.97470519,0.00022399,2]
[369645548,1751670639429,-152.14,0.000224,31]
[369645549,1751670639439,-152.14,0.000224,31]
[369645550,1751670639449,-152.14,0.000224,31]
[369645551,1751670639459,-152.14,0.000224,31]
[369645552,1751670639469,-152.14,0.000224,31]
[369645553,1751670639479,-152.14,0.000224,31]
[369645554,1751670639488,-152.14,0.000224,31]
[369645555,1751670639497,-152.14,0.000224,31]
[369645556,1751670639506,-152.14,0.000224,31]
[369645557,1751670639515,-636.39145872,0.000224,2]
[369645558,1751670639527,-354.67427596,0.00022417,7]
[369645559,1751670639537,-1182.01,0.00022422,5]
[369645560,1751670639547,-215.0738,0.0002245,2]
[369645561,1751670639557,-300.0,0.00022463,2]
[369645562,1751670639566,-316.10887213,0.00022466,3]
[369645563,1751670639576,-334.64,0.00022479,3]
[369645564,1751670639585,-524.86301716,0.0002248,10]
[369645565,1751670639595,-151.0,0.0002248,10]
[369645566,1751670639604,-160.0,0.00022482,2]
[369645567,1751670639614,-160.0,0.00022482,2]
[369645568,1751670639623,-213.97741257,0.00022482,2]
[369645569,1751670639633,-837.48520791,0.00022482,2]
[369645570,1751670639642,-847.91215827,0.00022482,2]
[369645571,1751670639652,-215.11345689,0.00022482,2]
[369645572,1751670639662,-230.40116161,0.00022482,2]
[369645573,1751670639671,-157.64988305,0.00022489,2]
[369645574,1751670639680,-205.61168846,0.00022489,2]
[369645575,1751670639689,-500.0,0.00022489,2]
[369645576,1751670639699,-500.0,0.00022489,2]
[369645577,1751670639709,-500.0,0.00022489,2]
[369645578,1751670639720,-500.0,0.00022489,2]
[369645581,1751670639737,-500.0,0.00022489,2]
[369645583,1751670639752,-212.11287427,0.00022489,2]
[369645585,1751670639761,-435.90229675,0.00022489,2]
[369645587,1751670639775,-4385.40949035,0.0002249,2]
[369645589,1751670639785,-16744.90608014,0.0002249,2]
[369645591,1751670639795,-99219.02367659,0.0002249,7]
[369645662,1751670643600,-1101.45630486,0.0002248,10]
[369645664,1751670646302,-6479.67369514,0.0002248,10]
[369645665,1751670646313,-944.25084928,0.0002249,7]
[369645666,1751670646325,-18196.67892716,0.0002249,7]
[369645667,1751670646337,-1866.98860841,0.0002249,7]
[369645668,1751670646348,-1784.78412615,0.0002249,7]
[369645669,1751670911155,186.43654,0.00013699,2]
[369645709,1751671832535,-300.0,0.00016208,2]
[369645710,1751671832545,-300.0,0.00016208,2]
[369645711,1751671832554,-168.40735485,0.00016208,2]
[369645712,1751671832566,-131.59264515,0.00016208,2]
[369645713,1751671832575,-300.0,0.00016208,2]
[369645714,1751671832585,-1200.0,0.00016208,2]
[369645715,1751671832595,-5951.92173501,0.00016209,2]
[369645716,1751671832607,-581.95735229,0.00016209,2]
[369645717,1751671832618,-1282.54935707,0.00016209,2]
[369645740,1751671838520,-17267.04339812,0.00016209,2]
[369645741,1751671838530,-326.80947977,0.000189,2]
[369645742,1751671838540,-1286.4829367,0.000189,2]
[369645743,1751671838550,-150.0,0.00019,2]
[369645744,1751671838560,-326.80947965,0.00019107,2]
[369645745,1751671838570,-326.80947965,0.00019314,2]
[369645746,1751671838579,-326.80947965,0.00019521,2]
[369645747,1751671838589,-326.80947965,0.00019728,2]
[369645748,1751671838598,-326.80947965,0.00019934,2]
[369645749,1751671838608,-326.80947965,0.00020141,2]
[369645750,1751671838617,-186.57410897,0.00020167,2]
[369645751,1751671838627,-186.43654,0.00020187,2]
[369645752,1751671838636,-406.0,0.00020267,2]
[369645753,1751671838646,-280.04555088,0.00020287,2]
[369645754,1751671838656,-326.80947965,0.00020348,3]
[369645755,1751671838665,-326.80947965,0.00020555,3]
[369645756,1751671838674,-196.7827477,0.00020665,2]
[369645757,1751671838684,-326.80947965,0.00020762,3]
[369645758,1751671838693,-280.04555083,0.00020857,2]
[369645759,1751671838702,-326.80947965,0.00020969,4]
[369645760,1751671838712,-207.4,0.00021081,2]
[369645761,1751671838721,-326.80947965,0.00021176,4]
[369645762,1751671838730,-185.1799,0.00021298,2]
[369645763,1751671838740,-326.80947965,0.00021383,5]
[369645764,1751671838750,-280.04555083,0.00021427,2]
[369645765,1751671838759,-2339.8605285,0.00021495,2]
[369645766,1751671838768,-213.97741257,0.00021588,2]
[369645767,1751671838778,-847.91215827,0.00021588,2]
[369645768,1751671838790,-160.0,0.00021588,2]
[369645769,1751671838807,-326.80947965,0.0002159,5]
[369645770,1751671838816,-460.0,0.00021597,2]
[369645771,1751671838826,-460.0,0.00021597,2]
[369645772,1751671838835,-460.0,0.00021597,2]
[369645773,1751671838844,-460.0,0.00021597,2]